[Event "ROU-ch Men 2018"]
[Site "Olanesti"]
[Date "2018.05.15"]
[Round "2"]
[White "Coca, Cristi-Iulian"]
[Black "Cenusa, Mihai"]
[Result "0-1"]
[ECO "C18"]
[WhiteElo "2003"]
[BlackElo "1819"]
[Annotator "NA RC"]
[PlyCount "93"]
[EventDate "2018.??.??"]
[EventType "swiss"]
[EventCountry "ROU"]
[SourceTitle "playchess.com"]
[Source "ChessBase"]
[SourceQuality "1"]
[TimeControl "40/5400+30:1800+30"]

1. e4 {[%emt 0:00:00]} e6 {[%emt 0:00:22]} 2. d4 {[%emt 0:00:00]} d5 {[%emt 0:00:06]} 3. Nc3 {[%emt 0:00:00]} Bb4 {[%emt 0:01:26]} 4. e5 {[%emt 0:00:00]} c5 {[%emt 0:00:40]} 5. a3 {[%emt 0:00:00]} Bxc3+ {[%emt 0:00:13]} 6. bxc3 {[%emt 0:00:00]} Qa5 {[%emt 0:00:28]} 7. Bd2 {[%emt 0:01:01]} c4 {[%emt 0:00:21]} 8. f4 {[%emt 0:00:19] C18: French: 3 Nc3 Bb4: Main line: 7 h4 and 7 Qg4} (8. Qg4 g6 9. Nf3 Bd7 10. Be2 Ba4 11. Ra2 Qc7 12. O-O Nd7 13. Bg5 Nb6 14. Rb1 h6 15. Qh4 Bc6 {1-0 (37) Zarate,J (2287)-Martins Barriga,F (2231) ICCF email 2016}) 8... g6 $146 {[%emt 0:00:11]} ({Predecessor:} 8... Ne7 9. Nf3 Nd7 10. Be2 Nb6 11. O-O Bd7 12. Qb1 O-O 13. Qb4 Nc6 14. Qxa5 Nxa5 15. Nh4 Na4 {1-0 (40) Deniz Martin,J (1973)-Reyes Hidalgo,A (1654) Las Palmas 2012}) 9. Nf3 {[%emt 0:00:10]} Ne7 {[%emt 0:00:10]} 10. Be2 {[%emt 0:01:22]} h5 {[%emt 0:00:42]} 11. h3 {[%emt 0:03:59]} Nf5 {[%emt 0:00:56]} 12. Kf2 {[%emt 0:00:37]} h4 {[%emt 0:00:11]} 13. Ng5 {[%emt 0:01:04]} Nc6 {[%emt 0:00:43]} 14. Bg4 {[%emt 0:01:41]} Ng3 {[%emt 0:01:12]} 15. Re1 {[%emt 0:00:36]} Ne7 {[%emt 0:00:27]} 16. Kg1 {[%emt 0:26:38]} Bd7 {[%emt 0:04:58]} 17. Kh2 {[%emt 0:06:02]} Rc8 {[%emt 0:01:10]} 18. Qf3 {[%emt 0:04:19]} Rc6 {[%emt 0:01:33]} 19. Reb1 {[%emt 0:00:44]} Rb6 {[%emt 0:00:26]} 20. Be1 {[%emt 0:05:34]} Ngf5 {[%emt 0:00:17]} 21. Qd1 {[%emt 0:07:01]} Ba4 {[%emt 0:01:45]} 22. Qc1 {[%emt 0:02:16]} Nh6 {[%emt 0:09:34]} 23. Rb4 {[%emt 0:05:19]} Nc6 {[%emt 0:08:21]} 24. Rxb6 {[%emt 0:06:28]} Qxb6 {[%emt 0:00:23]} 25. Nf3 {[%emt 0:01:06]} Qd8 {[%emt 0:00:56]} 26. Bf2 {[%emt 0:03:15]} Kd7 {[%emt 0:01:37]} 27. Ra2 {[%emt 0:00:48]} Kc7 {[%emt 0:04:55]} 28. Qe1 {[%emt 0:00:36]} (28. Ng5 $1 $14) 28... f5 {[%emt 0:00:06]} 29. exf6 {[%emt 0:00:23]} Qxf6 {[%emt 0:00:35]} 30. Qe3 {[%emt 0:11:57]} Nxg4+ $11 {[%emt 0:17:37]} 31. hxg4 {[%emt 0:00:06]} Kb6 {[%emt 0:15:51]} 32. Kh3 {[%emt 0:01:15]} Rf8 {[%emt 0:00:25]} 33. Rb2+ {[%emt 0:01:01]} Ka6 {[%emt 0:00:13]} 34. Bxh4 {[%emt 0:06:26]} Qxf4 {[%emt 0:00:44]} 35. Qxe6 {[%emt 0:00:33]} Qc1 {[%emt 0:00:49]} 36. Rb4 {[%emt 0:00:06]} Bxc2 {[%emt 0:11:10]} 37. Qxd5 {[%emt 0:02:32]} Rxf3+ {[%emt 0:02:32]} 38. Qxf3 {[%emt 0:01:01]} Nxb4 {[%emt 0:00:19]} 39. cxb4 {[%emt 0:00:50]} Bd3 {[%emt 0:03:30]} 40. b5+ {[%emt 0:00:00]} Ka5 {[%emt 0:00:09]} 41. Qxb7 {[%emt 0:09:04]} Ka4 {[%emt 0:23:44]} 42. Qxa7+ {[%emt 0:00:54]} Kb3 {[%emt 0:00:04]} 43. Bf2 {[%emt 0:05:41]} Be4 {[%emt 0:00:34]} 44. Qc7 {[%emt 0:03:58]} Qh6+ {[%emt 0:01:06]} 45. Kg3 {[%emt 0:00:50]} Qd2 46. Kh3 Qc1 47. Qa7 0-1

[Event "ROU-ch Men 2018"]
[Site "Olanesti"]
[Date "2018.05.15"]
[Round "2"]
[White "Berechet, Stefan-Mario"]
[Black "Sava, Bogdan"]
[Result "1-0"]
[ECO "A35"]
[WhiteElo "1879"]
[BlackElo "2099"]
[Annotator "NA"]
[PlyCount "101"]
[EventDate "2018.??.??"]
[EventType "swiss"]
[EventCountry "ROU"]
[SourceTitle "playchess.com"]
[Source "ChessBase"]
[SourceQuality "1"]
[TimeControl "40/5400+30:1800+30"]

1. c4 {[%emt 0:00:00]} Nf6 {[%emt 0:02:52]} 2. Nf3 {[%emt 0:00:00]} c5 {[%emt 0:00:59]} 3. Nc3 {[%emt 0:00:00]} Nc6 {[%emt 0:00:33]} 4. a3 {[%emt 0:00:05]} g6 {[%emt 0:03:31]} 5. Rb1 {[%emt 0:00:05]} a5 {[%emt 0:04:48]} 6. g3 {[%emt 0:00:20]} Bg7 {[%emt 0:00:13]} 7. Bg2 {[%emt 0:00:49]} O-O {[%emt 0:00:21]} 8. O-O {[%emt 0:00:04]} d6 {[%emt 0:00:51]} 9. d3 {[%emt 0:00:11]} Bd7 {[%emt 0:01:44]} 10. Bd2 {[%emt 0:02:46] LiveBook: 54 Games} Re8 {[%emt 0:05:14] A38: Symmetrical English vs ...g6: 4 Bg2 Bg7 5 Nf3 Nf6} (10... Qc8 11. Ne1 Bh3 12. Nc2 Bxg2 13. Kxg2 Qd7 14. b4 axb4 15. axb4 d5 16. cxd5 Nxb4 17. Nxb4 cxb4 18. Rxb4 Nxd5 19. Nxd5 Qxd5+ {0-1 (74) Duda,J (2724)-Bu,X (2725) Liaocheng 2018}) 11. h3 {[%emt 0:02:08]} Qc8 {[%emt 0:06:44]} 12. Kh2 {[%emt 0:00:30]} Ra6 $146 {[%emt 0:09:49]} ({Predecessor:} 12... Nd4 13. Nxd4 cxd4 14. Ne4 Nxe4 15. dxe4 {0-1 (37) Marino,F-Dieli,R (1943) Arco 2008}) 13. e4 {[%emt 0:04:07]} e5 {[%emt 0:07:05]} 14. Ne1 {[%emt 0:00:27]} Nh5 {[%emt 0:01:58]} 15. Nd5 {[%emt 0:01:34]} Ne7 {[%emt 0:05:24]} 16. Nxe7+ {[%emt 0:03:51]} Rxe7 {[%emt 0:00:23]} 17. Qe2 {[%emt 0:08:34]} Ra8 {[%emt 0:01:32]} 18. Nc2 {[%emt 0:00:33]} Re8 {[%emt 0:03:52]} 19. Ne3 {[%emt 0:00:11]} Be6 {[%emt 0:02:29]} 20. Rfc1 {[%emt 0:02:56]} Qd7 {[%emt 0:03:42]} 21. b4 {[%emt 0:02:29]} cxb4 {[%emt 0:03:08]} 22. axb4 {[%emt 0:00:08]} a4 {[%emt 0:00:38]} 23. b5 {[%emt 0:02:12]} Nf6 {[%emt 0:10:14]} 24. Ra1 {[%emt 0:01:31]} Ra7 {[%emt 0:06:07]} 25. Ra3 {[%emt 0:00:42]} Rea8 {[%emt 0:00:50]} 26. Rca1 {[%emt 0:00:18]} Ne8 {[%emt 0:02:56]} 27. Nd1 {[%emt 0:01:01]} f5 {[%emt 0:00:55]} 28. f3 {[%emt 0:01:30]} h5 $2 {[%emt 0:04:17]} (28... f4 $16) 29. Nc3 {[%emt 0:00:17]} f4 {[%emt 0:01:24]} 30. g4 {[%emt 0:01:06]} hxg4 {[%emt 0:03:25]} 31. fxg4 {[%emt 0:00:09]} Nf6 {[%emt 0:00:32]} 32. Rxa4 {[%emt 0:03:17]} (32. g5 $142) 32... Rxa4 {[%emt 0:00:50]} 33. Rxa4 {[%emt 0:00:09]} Rf8 {[%emt 0:00:28]} 34. Bf3 {[%emt 0:00:20]} (34. g5 $16) 34... Kf7 {[%emt 0:00:33]} 35. Nd5 {[%emt 0:03:07]} Rh8 {[%emt 0:02:14]} 36. Nxf6 {[%emt 0:01:19]} Bxf6 {[%emt 0:00:03]} 37. Kg2 {[%emt 0:00:45]} Qc7 {[%emt 0:01:36]} 38. Bb4 {[%emt 0:11:22]} g5 {[%emt 0:02:22]} 39. Ra1 {[%emt 0:00:15]} Kg6 {[%emt 0:00:18]} 40. Qf2 {[%emt 0:00:00]} Qh7 {[%emt 0:02:22]} 41. Rh1 {[%emt 0:01:23]} Qc7 {[%emt 0:01:19]} 42. Qa7 {[%emt 0:01:30]} Bd8 {[%emt 0:09:07]} 43. Qa3 $14 {[%emt 0:23:31]} Be7 {[%emt 0:00:46]} 44. Qa5 {[%emt 0:00:52]} Qxa5 {[%emt 0:17:07]} 45. Bxa5 {[%emt 0:00:09]} Ra8 {[%emt 0:00:32]} 46. Ra1 {[%emt 0:00:51]} Bd8 {[%emt 0:01:16]} 47. Bc3 {[%emt 0:00:08]} Rxa1 {[%emt 0:00:50]} 48. Bxa1 {[%emt 0:00:01]} Bb6 {[%emt 0:00:35]} 49. Kf1 {[%emt 0:00:19]} Bd4 {[%emt 0:01:27]} 50. Bxd4 {[%emt 0:00:21]} exd4 {[%emt 0:00:02]} 51. e5 {[%emt 0:02:44]} 1-0

[Event "ROU-ch Men 2018"]
[Site "Olanesti"]
[Date "2018.05.15"]
[Round "2"]
[White "Stan, Andrei-Mihaita"]
[Black "Raducanu, Andrei-Augustin"]
[Result "1-0"]
[ECO "E87"]
[WhiteElo "1860"]
[BlackElo "2063"]
[Annotator "NA RC"]
[PlyCount "99"]
[EventDate "2018.??.??"]
[EventType "swiss"]
[EventCountry "ROU"]
[SourceTitle "playchess.com"]
[Source "ChessBase"]
[SourceQuality "1"]
[TimeControl "40/5400+30:1800+30"]

{[%evp 13,98,50,32767,32767,33,67,32767,32767,32767,32767,35,16,24,10,21,21,20,32767,32767,32767,32767,32767,32767,32767,32767,32767,32767,32767,32767,32,37,63,61,40,32767,77,120,79,32767,24,32767,32767,32767,0,32767,0,0,0,0,-64,32767,-64,32767,-18,32767,32767,32767,32767,-25,-45,-28,-3,-14,32767,-1,-2,32767,0,32767,462,32767,1577,32767,32767,32767,32767,1132,2533,32767,2683,1401,2601,1958,29986,32767,32767,29990]} 1. d4 {[%emt 0:00:00]} Nf6 {[%emt 0:00:07]} 2. c4 {[%emt 0:00:00]} g6 {[%emt 0:00:12]} 3. Nc3 {[%emt 0:00:00]} Bg7 {[%emt 0:00:04]} 4. e4 {[%emt 0:00:07]} d6 {[%emt 0:00:05]} 5. f3 {[%emt 0:00:05]} O-O {[%emt 0:00:10]} 6. Be3 {[%emt 0:00:06]} e5 {[%emt 0:00:07]} 7. d5 {[%emt 0:00:47]} Nh5 {[%emt 0:02:05]} 8. Qd2 {[%emt 0:03:03]} f5 {[%emt 0:00:38] LiveBook: 208 Games} 9. O-O-O {[%emt 0:02:58]} f4 {[%emt 0:03:28]} 10. Bf2 {[%emt 0:00:08]} Bf6 {[%emt 0:04:10]} 11. Bd3 {[%emt 0:13:22] E87: King's Indian: Sämisch: 6...e5 7 d5} (11. Qe1 Nd7 12. Kb1 Be7 13. g3 c5 14. dxc6 bxc6 15. c5 dxc5 16. Na4 Qc7 17. Qc3 Rb8 18. Bh3 Nb6 19. Nxc5 {½-½ (36) Giri,A (2720)-Carlsen,M (2861) Wijk aan Zee 2013}) 11... Bh4 {[%emt 0:07:27]} 12. Qe1 {[%emt 0:06:36]} Bxf2 {[%emt 0:02:18]} 13. Qxf2 {[%emt 0:00:07]} Nd7 $146 {[%emt 0:00:35]} ({Predecessor:} 13... Na6 14. Bc2 Ng7 15. Kb1 c5 16. Nge2 Nc7 17. g3 Nh5 18. gxf4 Nxf4 19. Nxf4 Rxf4 {1-0 (50) Hesham,A (2200)-Hassan,S (2376) Cairo 2010}) 14. Nge2 {[%emt 0:02:43]} Nc5 {[%emt 0:00:52]} 15. Bc2 {[%emt 0:09:47]} a6 {[%emt 0:00:19]} 16. b4 {[%emt 0:03:46]} Nd7 {[%emt 0:00:05]} 17. Bb3 {[%emt 0:06:15]} a5 {[%emt 0:23:00]} 18. a3 {[%emt 0:01:35]} axb4 {[%emt 0:03:34]} 19. axb4 {[%emt 0:00:13]} Nb8 {[%emt 0:03:53]} 20. Kb2 {[%emt 0:01:06]} Na6 {[%emt 0:00:17]} 21. Na2 {[%emt 0:07:08]} Kh8 {[%emt 0:16:35]} 22. Nec1 {[%emt 0:01:56]} Bd7 {[%emt 0:01:10]} 23. Nd3 {[%emt 0:05:58]} Qe7 {[%emt 0:01:49]} 24. b5 {[%emt 0:02:01]} Nb8 {[%emt 0:05:10]} 25. Nc3 {[%emt 0:01:36]} Bc8 {[%emt 0:03:34]} 26. c5 {[%emt 0:13:12]} ({White should play} 26. Ra1 $16 Rxa1 27. Rxa1) 26... Nd7 {[%emt 0:06:16]} 27. c6 {[%emt 0:00:24]} bxc6 {[%emt 0:01:57]} 28. dxc6 {[%emt 0:01:42]} Nb6 {[%emt 0:00:09]} 29. Nb4 {[%emt 0:05:02]} Nf6 {[%emt 0:00:57]} 30. Qd2 {[%emt 0:08:21]} Be6 {[%emt 0:01:58]} 31. Nbd5 {[%emt 0:00:36]} ({White should try} 31. Ra1 $1 $11) 31... Bxd5 {[%emt 0:05:43]} 32. exd5 {[%emt 0:00:15]} Ra5 {[%emt 0:00:38]} 33. Ra1 {[%emt 0:00:25]} Rfa8 {[%emt 0:00:10]} 34. Rxa5 {[%emt 0:01:58]} Rxa5 {[%emt 0:00:01]} 35. Re1 {[%emt 0:00:16]} Qg7 {[%emt 0:04:13]} 36. g3 {[%emt 0:01:16]} Nh5 {[%emt 0:00:48]} 37. g4 {[%emt 0:01:36]} Nf6 {[%emt 0:00:08]} 38. Qd3 {[%emt 0:00:33]} Qf8 {[%emt 0:00:57]} 39. h4 {[%emt 0:00:58]} Qc8 {[%emt 0:01:50]} 40. h5 {[%emt 0:00:00]} gxh5 {[%emt 0:01:01]} 41. g5 {[%emt 0:01:32]} Ne8 {[%emt 0:02:31]} 42. Bc2 {[%emt 0:00:22]} Nc4+ {[%emt 0:11:22]} 43. Qxc4 {[%emt 0:00:08]} Ng7 {[%emt 0:00:48]} 44. Qe4 {[%emt 0:01:48]} Qg8 {[%emt 0:00:35]} 45. Rh1 {[%emt 0:03:18]} Ra8 {[%emt 0:00:31] [#]} 46. b6 $1 {[%emt 0:04:04]} cxb6 {[%emt 0:00:25]} 47. c7 {[%emt 0:00:11]} b5 {[%emt 0:01:15]} 48. Nxb5 {[%emt 0:00:25]} Rc8 {[%emt 0:00:24]} 49. Bd3 {[%emt 0:00:35]} Rf8 {[%emt 0:00:42]} 50. Nxd6 {[%emt 0:00:26]} 1-0

[Event "ROU-ch Men 2018"]
[Site "Olanesti"]
[Date "2018.05.16"]
[Round "3"]
[White "Stanciu, Alexandru-Ovidiu"]
[Black "Daianu, Cristian-Clement"]
[Result "1/2-1/2"]
[ECO "A00"]
[WhiteElo "2363"]
[BlackElo "2150"]
[Annotator "NA"]
[PlyCount "53"]
[EventDate "2018.??.??"]
[EventType "swiss"]
[EventCountry "ROU"]
[SourceTitle "playchess.com"]
[Source "ChessBase"]
[SourceQuality "1"]
[TimeControl "40/5400+30:1800+30"]

1. g3 {[%emt 0:05:41]} Nf6 {[%emt 0:03:21]} 2. Bg2 {[%emt 0:01:09]} d5 {[%emt 0:00:08]} 3. f4 {[%emt 0:07:22]} Nc6 {[%emt 0:06:45] A03: Bird's Opening with 1...d5} (3... g6 4. Nf3 Bg7 5. d3 O-O 6. O-O Re8 7. Qe1 Nc6 8. e4 dxe4 9. dxe4 e5 10. f5 gxf5 11. Nh4 Nxe4 12. Nxf5 Bxf5 13. Rxf5 Nd6 14. Rf1 {1-0 (50) Kamsky,G (2638)-Sevian,S (2600) Greensboro 2016}) 4. Nf3 {[%emt 0:00:26]} Qd6 {[%emt 0:19:47]} 5. O-O {[%emt 0:09:06]} e5 {[%emt 0:12:33]} 6. fxe5 {[%emt 0:00:17]} Nxe5 {[%emt 0:00:01]} 7. Nxe5 $146 {[%emt 0:00:24]} ({Predecessor:} 7. d3 Nxf3+ 8. exf3 Be6 9. Re1 Be7 10. Nc3 Qd7 11. Qe2 Bc5+ {1-0 (25) Rajaonson,A (1864)-Sandjivy,J (1366) St Denis 2014}) 7... Qxe5 {[%emt 0:00:04]} 8. d4 {[%emt 0:00:04]} Qh5 {[%emt 0:02:44]} 9. Qd3 {[%emt 0:40:50]} Bd6 {[%emt 0:07:36]} 10. Nc3 {[%emt 0:04:03]} O-O {[%emt 0:03:53]} 11. Rxf6 {[%emt 0:06:34]} gxf6 {[%emt 0:00:23]} 12. Nxd5 {[%emt 0:00:03]} Kg7 {[%emt 0:10:27]} 13. Bf4 {[%emt 0:07:00]} Bg4 {[%emt 0:05:02]} 14. e4 {[%emt 0:04:47]} Bxf4 {[%emt 0:03:34]} 15. Nxf4 {[%emt 0:00:06]} Qg5 {[%emt 0:00:51]} 16. Rf1 {[%emt 0:01:09]} c6 {[%emt 0:00:58]} 17. h3 {[%emt 0:01:59]} Be6 {[%emt 0:04:44]} 18. b3 {[%emt 0:00:34]} Rad8 {[%emt 0:00:53]} 19. Kh2 {[%emt 0:00:58]} Kh8 {[%emt 0:00:58]} 20. Rf2 {[%emt 0:01:52]} a5 {[%emt 0:05:31]} 21. a4 {[%emt 0:01:40]} Rd7 {[%emt 0:00:23]} 22. g4 {[%emt 0:00:17]} Rfd8 {[%emt 0:00:46]} 23. d5 {[%emt 0:00:13]} cxd5 {[%emt 0:03:46]} 24. exd5 {[%emt 0:00:06]} Bxd5 {[%emt 0:00:29]} 25. Nxd5 $11 {[%emt 0:01:05]} Rxd5 {[%emt 0:00:17]} 26. Bxd5 {[%emt 0:00:07]} Rxd5 {[%emt 0:00:05]} 27. Qf3 {[%emt 0:00:48]} 1/2-1/2

[Event "ROU-ch Men 2018"]
[Site "Olanesti"]
[Date "2018.05.16"]
[Round "3"]
[White "Vasiesiu, Victor"]
[Black "Chima, Radu-Niculin"]
[Result "1/2-1/2"]
[ECO "C11"]
[WhiteElo "2327"]
[BlackElo "2095"]
[Annotator "NA"]
[PlyCount "112"]
[EventDate "2018.??.??"]
[EventType "swiss"]
[EventCountry "ROU"]
[SourceTitle "playchess.com"]
[Source "ChessBase"]
[SourceQuality "1"]
[TimeControl "40/5400+30:1800+30"]

{[%evp 8,109,31,28,19,10,17,20,32767,4,107,33,0,-6,84,81,95,56,59,53,69,21,117,124,101,119,117,101,105,32767,32767,32767,32767,32767,32767,32767,32767,32767,32767,32767,32767,32767,32767,32767,32767,32767,32767,32767,32767,32767,32767,32767,115,32767,122,32767,32767,150,32767,139,32767,32767,160,156,149,165,146,147,146,173,32767,236,32767,227,238,228,32767,32767,32767,226,32767,32767,32767,32767,32767,32767,32767,202,192,32767,32767,168,210,32767,218,186,226,32767,32767,32767,32767,32767,189,77]} 1. e4 {[%emt 0:00:43]} e6 {[%emt 0:00:11]} 2. d4 {[%emt 0:00:06]} d5 {[%emt 0:00:05]} 3. Nc3 {[%emt 0:00:06]} Nf6 {[%emt 0:00:08]} 4. Bg5 {[%emt 0:00:06]} dxe4 {[%emt 0:01:17]} 5. Nxe4 {[%emt 0:00:06]} Be7 {[%emt 0:00:16]} 6. Bxf6 {[%emt 0:00:06]} Bxf6 {[%emt 0:00:26]} 7. Nf3 {[%emt 0:00:07]} O-O {[%emt 0:02:31]} 8. Qd3 {[%emt 0:00:23] LiveBook: 32 Games} b6 {[%emt 0:04:16] C13: French: Classical System: 4 Bg5 Be7, Alekhine-Chatard Attack} (8... Be7 $14) (8... Nd7 9. O-O-O b6 10. g4 Bb7 11. Rg1 g6 12. g5 Bg7 13. Bg2 c5 14. h4 cxd4 15. Nxd4 Qe7 16. Nb3 {1-0 (37) Savchenko,B (2607)-Popov,I (2596) Moscow 2016}) 9. O-O-O {[%emt 0:01:49]} ({Better is} 9. Nxf6+ $16 Qxf6 10. Qe4) 9... Bb7 {[%emt 0:00:23]} 10. h4 {[%emt 0:00:22]} Bxe4 $146 {[%emt 0:04:16]} (10... Nd7 $1 $11 {remains equal.}) ({Predecessor:} 10... Na6 11. Nfg5 g6 12. Qg3 Bg7 13. h5 Bxe4 14. Nxe4 Qd5 15. Nc3 Qa5 16. hxg6 hxg6 {½-½ (56) Rizsonkov,V (2233)-Yushko,O (2117) Uzhgorod 2007}) 11. Qxe4 {[%emt 0:00:06]} Qd5 {[%emt 0:00:07]} 12. Qxd5 {[%emt 0:02:54]} exd5 {[%emt 0:00:07]} 13. Ne5 {[%emt 0:01:03]} c5 {[%emt 0:06:27]} 14. Ng4 {[%emt 0:01:35]} Be7 {[%emt 0:11:49]} (14... Bxd4 $11 {keeps the balance.} 15. c3 f5) 15. dxc5 {[%emt 0:04:26]} Bxc5 {[%emt 0:00:23]} 16. Rxd5 {[%emt 0:00:42]} Nc6 {[%emt 0:02:22]} 17. Bc4 {[%emt 0:01:14]} Na5 {[%emt 0:06:20]} 18. Bd3 {[%emt 0:02:11]} Rad8 {[%emt 0:08:25]} 19. Rxd8 {[%emt 0:00:51]} Rxd8 {[%emt 0:00:09]} 20. Rd1 {[%emt 0:00:12]} Rd4 {[%emt 0:06:16]} 21. Be2 {[%emt 0:06:08]} f5 {[%emt 0:03:40]} 22. Rxd4 {[%emt 0:08:06]} Bxd4 {[%emt 0:00:20]} 23. Ne3 {[%emt 0:00:10]} g6 {[%emt 0:03:11]} 24. c3 {[%emt 0:00:57]} Bf6 {[%emt 0:00:12]} 25. Bf3 {[%emt 0:01:59]} b5 {[%emt 0:07:49]} 26. g3 {[%emt 0:00:43]} Kf8 {[%emt 0:07:28]} 27. b4 {[%emt 0:14:43]} Nc4 {[%emt 0:04:02]} 28. Nxc4 {[%emt 0:00:05]} bxc4 {[%emt 0:00:04]} 29. Kd2 {[%emt 0:00:06]} Ke7 {[%emt 0:01:24]} 30. Bd5 {[%emt 0:00:06]} f4 {[%emt 0:00:29]} 31. Bxc4 {[%emt 0:01:09]} fxg3 {[%emt 0:00:53]} 32. fxg3 {[%emt 0:00:05]} h5 {[%emt 0:01:44]} 33. Be2 {[%emt 0:02:21]} Be5 {[%emt 0:01:56]} 34. g4 {[%emt 0:00:06]} hxg4 {[%emt 0:00:53]} 35. Bxg4 {[%emt 0:00:04]} Bf6 {[%emt 0:00:25]} 36. h5 {[%emt 0:00:04]} gxh5 {[%emt 0:00:07]} 37. Bxh5 {[%emt 0:00:05]} Kd6 {[%emt 0:01:25]} 38. Kd3 {[%emt 0:02:10]} Bh4 {[%emt 0:01:14]} 39. c4 {[%emt 0:02:24]} Bf2 {[%emt 0:00:31]} 40. c5+ {[%emt 0:00:00]} Kc7 {[%emt 0:01:12]} 41. Kc4 {[%emt 0:00:57]} Be1 {[%emt 0:00:59]} 42. Kb5 {[%emt 0:04:05]} Bc3 {[%emt 0:01:09]} 43. Bf3 {[%emt 0:00:23]} Bd2 {[%emt 0:00:33]} 44. a4 {[%emt 0:00:14]} Be1 {[%emt 0:02:57]} 45. a5 {[%emt 0:03:37]} Bd2 {[%emt 0:00:52]} 46. a6 {[%emt 0:00:50]} Be3 {[%emt 0:00:52]} 47. Kc4 {[%emt 0:00:29]} Kb8 {[%emt 0:03:16]} 48. Kd5 {[%emt 0:01:07]} Bf4 {[%emt 0:01:47]} 49. b5 {[%emt 0:03:52]} Bc7 {[%emt 0:15:20]} 50. Kc6 {[%emt 0:00:16]} Bd8 {[%emt 0:00:46]} 51. Kd7 {[%emt 0:02:13]} Bg5 {[%emt 0:02:01]} 52. Be2 {[%emt 0:00:31]} Be3 {[%emt 0:00:13]} 53. Kc6 {[%emt 0:00:09]} Bf2 {[%emt 0:00:15]} 54. b6 {[%emt 0:00:12]} Be3 $18 {[%emt 0:03:22]} 55. Kd6 {[%emt 0:00:05]} ({Don't do} 55. b7 Bg5 $18) (55. Bd3 $18 {is more deadly.}) 55... axb6 {[%emt 0:00:25]} 56. c6 {[%emt 0:00:10]} Bf4+ {[%emt 0:00:28] Ke5} 1/2-1/2

[Event "ROU-ch Men 2018"]
[Site "Olanesti"]
[Date "2018.05.16"]
[Round "3"]
[White "Pop, Alexandru"]
[Black "Farcadi, Hunor"]
[Result "*"]
[ECO "A48"]
[WhiteElo "2302"]
[BlackElo "1959"]
[Annotator "NA"]
[PlyCount "100"]
[EventDate "2018.??.??"]
[EventType "swiss"]
[EventCountry "ROU"]
[SourceTitle "playchess.com"]
[Source "ChessBase"]
[SourceQuality "1"]
[TimeControl "40/5400+30:1800+30"]

1. d4 {[%emt 0:03:21]} Nf6 {[%emt 0:00:25]} 2. Nf3 {[%emt 0:00:06]} g6 {[%emt 0:00:18]} 3. Bg5 {[%emt 0:00:06]} Bg7 {[%emt 0:01:51]} 4. Nbd2 {[%emt 0:00:27]} c5 {[%emt 0:08:00]} 5. Bxf6 {[%emt 0:00:17]} Bxf6 {[%emt 0:00:26]} 6. Ne4 {[%emt 0:00:07]} Bxd4 {[%emt 0:02:27]} 7. Nxd4 {[%emt 0:00:05]} cxd4 {[%emt 0:00:06]} 8. Qxd4 {[%emt 0:00:03]} O-O {[%emt 0:00:43]} 9. c4 {[%emt 0:00:07]} Qa5+ {[%emt 0:05:04] A48: 1 d4 Nf6 2 Nf3 g6: Torre, London and Colle Systems} (9... d6 10. Nc3 {½-½ (10) Kamsky,G (2744)-Ivanchuk,V (2769) Amsterdam 2012}) 10. Nc3 {[%emt 0:00:53]} Nc6 {[%emt 0:00:20]} 11. Qd2 {[%emt 0:00:08]} d6 {[%emt 0:06:09] LiveBook: 3 Games} 12. e4 {[%emt 0:00:07]} a6 $146 {[%emt 0:03:05]} ({Predecessor:} 12... Bg4 13. Nd5 Qxd2+ 14. Kxd2 Bd7 15. Be2 Kg7 16. Rac1 Rac8 17. f3 f5 18. exf5 Bxf5 {½-½ (47) Tsolakidou,S (2364)-Costachi,M (2420) Poprad 2016}) 13. Nd5 {[%emt 0:01:40]} Qxd2+ {[%emt 0:01:49]} 14. Kxd2 {[%emt 0:00:05]} f5 {[%emt 0:02:26]} 15. exf5 {[%emt 0:01:27]} Bxf5 {[%emt 0:01:46]} 16. f3 {[%emt 0:00:20]} e5 {[%emt 0:04:52]} 17. Rc1 {[%emt 0:06:37]} Rae8 {[%emt 0:05:46]} 18. Be2 {[%emt 0:18:54]} Nd4 {[%emt 0:06:21]} 19. Rhf1 {[%emt 0:12:37]} Kg7 {[%emt 0:07:32]} 20. Ne3 {[%emt 0:05:17]} Rf7 {[%emt 0:04:33]} 21. b3 {[%emt 0:16:36]} Rc8 {[%emt 0:03:45]} 22. Rf2 {[%emt 0:12:28]} b5 {[%emt 0:08:47]} 23. Bf1 {[%emt 0:06:56]} b4 {[%emt 0:03:41]} 24. Nd5 {[%emt 0:03:49]} Rb7 {[%emt 0:01:18]} 25. Bd3 {[%emt 0:01:03]} a5 {[%emt 0:02:36]} 26. Ke3 {[%emt 0:02:44]} Ne6 {[%emt 0:07:42]} 27. Bxf5 {[%emt 0:01:53]} gxf5 {[%emt 0:00:06]} 28. f4 {[%emt 0:00:12]} Nd4 {[%emt 0:04:57]} ({Better is} 28... Rf7 $11) 29. h3 {[%emt 0:01:29]} a4 {[%emt 0:01:50]} 30. bxa4 {[%emt 0:00:19]} Ra8 {[%emt 0:00:21]} 31. c5 {[%emt 0:02:25]} dxc5 {[%emt 0:04:45]} 32. Rxc5 {[%emt 0:00:06]} Rxa4 {[%emt 0:00:51]} 33. fxe5 {[%emt 0:00:14]} Ne6 {[%emt 0:00:05]} 34. Rcc2 {[%emt 0:01:10]} Ra3+ {[%emt 0:00:05]} 35. Ke2 {[%emt 0:00:51]} Nd4+ {[%emt 0:00:16]} 36. Ke1 {[%emt 0:01:35]} Nxc2+ {[%emt 0:00:35]} 37. Rxc2 {[%emt 0:00:03]} Rd3 {[%emt 0:00:52]} 38. Rc5 {[%emt 0:00:24]} Ra3 {[%emt 0:01:50]} 39. e6 {[%emt 0:00:41]} Rxa2 {[%emt 0:00:25]} 40. e7 {[%emt 0:00:00]} Kf7 {[%emt 0:01:11]} 41. Rc8 {[%emt 0:02:05]} Rxe7+ {[%emt 0:00:59]} 42. Nxe7 {[%emt 0:00:05]} Kxe7 {[%emt 0:00:05]} 43. Rb8 {[%emt 0:01:48]} Rb2 $17 {[%emt 0:01:55]} 44. Kd1 {[%emt 0:00:11]} f4 {[%emt 0:04:16]} 45. Kc1 {[%emt 0:00:01]} Rxg2 {[%emt 0:00:39]} 46. Rxb4 {[%emt 0:00:09]} f3 {[%emt 0:00:16]} 47. Rf4 {[%emt 0:00:44]} f2 {[%emt 0:00:13]} 48. Kd1 {[%emt 0:00:13]} Rg1+ {[%emt 0:02:37]} 49. Ke2 {[%emt 0:00:06]} f1=Q+ {[%emt 0:00:05]} 50. Rxf1 {[%emt 0:00:05]} Rxf1 {[%emt 0:00:04]} *